Cogmind - Beta 13 @@@ ROGUE MODE // 2024.03.30 @ 00:57:52 Player: gabr Result: Destroyed by G-47 Trooper with Particle Gun Performance ------------- Evolutions (2) 1000 Regions Visited (3) 600 Robots Destroyed (65) 325 Value Destroyed (1775) 1775 Prototype IDs (2) 40 Alien Tech Used (0) 0 Bonus (0) 0 TOTAL SCORE: 3740 Bonus ------- None Cogmind --------- Core Integrity 0/550 Matter 300/300 Energy 250/280 System Corruption 0% Temperature Warm (153) Movement Treading (240) Ox1 Location -8/Materials Parts ------- > --- POWER (1) -------- Cooled Ion Engine > --- PROPULSION (3) --- Light Treads > --- UTILITY (4) ------ Improved Heat Sink Small Storage Unit Core Analyzer > --- WEAPON (3) ------- Ion Cannon Ion Cannon > --- INVENTORY (8) ---- Light Nuclear Core Aluminum Leg Core Shielding Hardlight Generator Field Laser Pulse Rifle Particle Cannon Improved Grenade Launcher Peak State ------------ > --- POWER ------------ Cooled Ion Engine > --- PROPULSION ------- Light Treads Light Treads Light Treads > --- UTILITY ---------- Improved Heat Sink Small Storage Unit Core Analyzer Armor Integrity Analyzer > --- WEAPON ----------- Pulse Rifle EM Pulse Cannon Improved Grenade Launcher > --- INVENTORY -------- Light Nuclear Core Aluminum Leg Heat Sink Compact Battery Salvage Targeting Computer ECM Suite Core Shielding Hardlight Generator [Rating: 28] Favorites ----------- Power Ion Engine Engine Ion Engine Power Core Light Nuclear Core Propulsion Aluminum Leg Treads Light Treads Leg Aluminum Leg Wheel Compact Wheel Utility Small Storage Unit Device Thermal Generator Storage Small Storage Unit Processor Armor Integrity Analyzer Protection Propulsion Shielding Weapon Heavy Assault Rifle Energy Gun Gatling Laser Energy Cannon Beam Cannon Ballistic Gun Heavy Assault Rifle Launcher Improved Grenade Launcher Build | -11 -10 -9 -8 ------- Run | Yrd Mat Mat Mat Slots Evolved 4 | . . 2 2 Power . | . . . . Propulsion 1 | . . 1 . Utility 2 | . . . 2 Weapon 1 | . . 1 . Parts Attached 62 | 6 5 13 38 Power 10 | 1 2 2 5 Engine 7 | 1 1 2 3 Core 3 | . 1 . 2 Reactor . | . . . . Propulsion 16 | 2 . 3 11 Treads 4 | . . . 4 Leg 8 | 2 . 3 3 Wheel 4 | . . . 4 Hover . | . . . . Flight . | . . . . Utility 15 | 1 1 2 11 Device 3 | . . . 3 Storage 2 | 1 . . 1 Processor 4 | . . . 4 Hackware . | . . . . Protection 6 | . 1 2 3 Artifact . | . . . . Weapon 21 | 2 2 6 11 Energy Gun 9 | 1 . 3 5 Energy Cannon 7 | . 1 1 5 Ballistic Gun 4 | 1 1 2 . Ballistic Cannon . | . . . . Launcher 1 | . . . 1 Special Weapon . | . . . . Impact Weapon . | . . . . Slashing Weapon . | . . . . Piercing Weapon . | . . . . Special Melee Weapon . | . . . . Unidentified Prototypes 2 | . . 1 1 Parts Lost 21 | . 1 . 20 Power 3 | . 1 . 2 Propulsion 9 | . . . 9 Utility 4 | . . . 4 Weapon 5 | . . . 5 Highest Loss Streak 7 | . 1 . 7 To Critical Strikes . | . . . . Average Slot Usage (%) 93 | . 96 100 89 Engine 8 | . 8 11 7 Core 1 | . 4 . . Treads 4 | . . . 8 Leg 17 | . 28 33 5 Wheel 4 | . . . 8 Device 4 | . . . 8 Storage 11 | . 14 11 9 Processor 3 | . . . 7 Protection 9 | . 11 11 8 Energy Gun 9 | . 10 7 10 Energy Cannon 7 | . 3 8 8 Ballistic Gun 9 | . 14 16 3 Launcher 1 | . . . 2 Naked Turns . | . . . . Heaviest Build 35 | 12 16 23 35 Greatest Support 60 | 20 20 30 60 Greatest Overweight (x) 6 | 1 . . 6 Average Overweight (x) . | . . . . Largest Inventory Capacity 8 | 8 8 8 8 Average Capacity 7 | 7 8 8 8 Most Carried 8 | 7 8 8 8 Average Carried 7 | 4 7 7 7 Final Capacity 8 | 8 8 8 8 Final Carried 8 | 6 8 8 8 Class Distribution -------------------- 33% | Mutant 20% | Scavenger-Tank 18% | Tank 14% | Scavenger-Gunner 10% | Scavenger-Mutant Dominant Class ---------------- Mutant | -10/Materials Scavenger-Tank | -9/Materials Scavenger-Gunner | -8/Materials Resources | -11 -10 -9 -8 ----------- Run | Yrd Mat Mat Mat Matter Collected 1324 | 165 267 299 593 Remotely . | . . . . Salvage Created 2432 | . 387 860 1185 Parts 149 | . 27 53 69 Haulers Intercepted 4 | . . 2 2 Recyclers Shooed 4 | . 1 2 1 Parts Field Recycled . | . . . . Retrieved Matter . | . . . . Parts Self-Destructed . | . . . . Prevented . | . . . . Kills | -11 -10 -9 -8 ------- Run | Yrd Mat Mat Mat Combat Hostiles Destroyed 44 | . 7 14 23 Guns 25 | . 4 11 10 Cannons 18 | . 3 3 12 AOE 1 | . . . 1 Classes Destroyed 11 | . 6 4 1 Worker 4 | . 1 1 2 Builder 1 | . 1 . . Hauler 4 | . . 2 2 Recycler 8 | . 2 3 3 Operator 2 | . 1 . 1 Watcher 2 | . . 2 . Swarmer 13 | . 3 4 6 Grunt 21 | . 4 7 10 Brawler 1 | . . 1 . Sentry 5 | . . 2 3 Specialist 4 | . . . 4 Best Kill Streak 5 | . 4 5 4 Combat Bots Only 4 | . 3 4 4 Max Kills in Single Turn 2 | . 1 2 2 Gunslinging . | . . . . Exploded 1 | . . . 1 Melee . | . . . . Uniques/NPCs Destroyed . | . . . . Combat | -11 -10 -9 -8 -------- Run | Yrd Mat Mat Mat Hostile Shots Fired 310 | . 35 41 234 Missed 67 | . 11 8 48 Damage Taken 3407 | . 264 317 2826 Core 629 | . 38 31 560 Absorbed by Shields . | . . . . Redirected to Shielding 168 | . 23 30 115 Core Remaining (%) 92 | 100 84 92 . Volleys Fired 157 | . 31 40 86 Largest 3 | . 2 3 3 Hottest 240 | . 80 130 240 Shots Fired 371 | . 62 118 191 Gun 243 | . 55 88 100 Cannon 123 | . 7 30 86 Launcher 5 | . . . 5 Special . | . . . . Kinetic 135 | . 31 61 43 Thermal 231 | . 31 57 143 Explosive 5 | . . . 5 Electromagnetic . | . . . . Robot Hit Streak 12 | . 9 10 12 Robot Miss Streak 10 | . 4 5 10 Penetration Max . | . . . . Secondary Targets . | . . . . Shots Hit Robots 227 | . 42 64 121 Core Hits 130 | . 21 38 71 Critical Kills . | . . . . Critical Parts Destroyed . | . . . . Critical Strikes 2 | . 1 1 . Burn 2 | . 1 1 . Melee Attacks . | . . . . Impact . | . . . . Slashing . | . . . . Piercing . | . . . . Sneak Attacks . | . . . . Combat Hostiles . | . . . . Follow-up Attacks . | . . . . Damage Inflicted 4238 | . 576 984 2678 Guns 2568 | . 489 702 1377 Cannons 1467 | . 87 282 1098 Explosions 203 | . . . 203 Melee . | . . . . Ramming . | . . . . Kinetic 1179 | . 261 484 434 Thermal 2856 | . 315 500 2041 Explosive 203 | . . . 203 Electromagnetic . | . . . . Impact . | . . . . Slashing . | . . . . Piercing . | . . . . Highest Corruption . | . . . . Average Corruption . | . . . . Corruption Purged . | . . . . Corruption Blocked . | . . . . Overload Shots . | . . . . Overflow Damage 20 | . . 1 19 Projectiles 7 | . . 1 6 Explosions 13 | . . . 13 Melee . | . . . . Knockbacks . | . . . . Impact . | . . . . Kinetic . | . . . . Secondary . | . . . . Self-Inflicted Damage 63 | . . . 63 Shots 2 | . . . 2 Rammed . | . . . . Targets Rammed . | . . . . Kicked . | . . . . Crushed . | . . . . Highest Temperature 522 | . 219 522 516 Average Temperature 147 | . 63 136 179 Received Heat Transfer 1467 | . 132 93 1242 Effects 25 | . 1 4 20 Shutdowns 4 | . . 1 3 Energy Bleed 7 | . 1 2 4 Interference 10 | . . . 10 Matter Decay 1 | . . . 1 Short Circuit 2 | . . 1 1 Damage (minor) 1 | . . . 1 Siege Activations . | . . . . Robots Corrupted . | . . . . Combat Hostiles . | . . . . Parts Fried . | . . . . Impact Corruptions . | . . . . Robots Melted . | . . . . Combat Hostiles . | . . . . Parts Melted 6 | . 1 . 5 Heat Transferred 5760 | . 925 1092 3743 Parts Sabotaged . | . . . . Parts Stolen . | . . . . Parts Stripped . | . . . . Power Chain Reactions . | . . . . Alert | -11 -10 -9 -8 ------- Run | Yrd Mat Mat Mat Peak Influence 375 | . 135 289 375 Initial 121 | . . 44 121 Average 128 | . 62 161 150 Maximum Alert Level 1 | . . 1 1 Low Security (%) 78 | 100 100 70 70 Level 1 21 | . . 29 29 Level 2 . | . . . . Level 3 . | . . . . Level 4 . | . . . . Level 5 . | . . . . High Security . | . . . . Max Security . | . . . . Squads Dispatched 10 | . 2 1 7 Investigation 2 | . 2 . . Extermination . | . . . . Reinforcement 4 | . . 1 3 Assault 1 | . . . 1 Garrison 3 | . . . 3 Intercept . | . . . . Searches Triggered . | . . . . Construction Impeded . | . . . . Haulers Reinforced . | . . . . Active Scanning Responses . | . . . . Cargo Convoy Interrupts . | . . . . Stealth | -11 -10 -9 -8 --------- Run | Yrd Mat Mat Mat Distress Signals 3 | . . 1 2 Communications Jammed . | . . . . Distress Signals . | . . . . Times Spotted 64 | . 8 23 33 Peak Tracking Total 8 | . 2 5 8 Tactical Retreats 1 | . . . 1 Traps | -11 -10 -9 -8 ------- Run | Yrd Mat Mat Mat Traps Triggered . | . . . . Indirectly . | . . . . Trap Hack Attempts . | . . . . Triggered . | . . . . Disarmed . | . . . . Reprogrammed . | . . . . Reused . | . . . . Traps Extracted . | . . . . Installed . | . . . . Triggered . | . . . . Machines | -11 -10 -9 -8 ---------- Run | Yrd Mat Mat Mat Machines Disabled 6 | . . 1 5 Max in Single Turn 2 | . . 1 2 Garrison Access 1 | . . . 1 Machines Repaired . | . . . . Machines Dismantled . | . . . . Machines Sabotaged . | . . . . Overloaded Fab Kills . | . . . . Hacking | -11 -10 -9 -8 --------- Run | Yrd Mat Mat Mat Machines Accessed 6 | . 3 1 2 Terminals 3 | . 1 1 1 Fabricators . | . . . . Repair Stations 1 | . 1 . . Recycling Units 1 | . 1 . . Scanalyzers . | . . . . Garrison Access 1 | . . . 1 Total Hacks 15 | . 9 1 5 Successful 7 | . 2 1 4 Failed 8 | . 7 . 1 Catastrophic 2 | . 2 . . Database Lockouts . | . . . . Manual . | . . . . Terminals 8 | . 3 1 4 Fabricators . | . . . . Repair Stations 3 | . 3 . . Recycling Units 3 | . 3 . . Scanalyzers . | . . . . Garrison Access 1 | . . . 1 Terminal Hacks 4 | . . 1 3 Alert Level 2 | . . . 2 Unreport Threat 1 | . . . 1 Zone Layout 1 | . . 1 . Fabricator Hacks . | . . . . Repair Station Hacks 1 | . 1 . . Scan Component 1 | . 1 . . Recycling Unit Hacks 1 | . 1 . . Report Inventory 1 | . 1 . . Scanalyzer . | . . . . Garrison Access Hacks 1 | . . . 1 Unlock Access 1 | . . . 1 Unauthorized Hacks . | . . . . Terminals . | . . . . Fabricators . | . . . . Repair Stations . | . . . . Recycling Units . | . . . . Scanalyzers . | . . . . Garrison Access . | . . . . Data Cores Recovered 1 | . 1 . . Used . | . . . . Hacking Detections 4 | . 3 . 1 Full Trace Events 3 | . 3 . . Feedback Events . | . . . . Feedback Blocked . | . . . . Robot Schematics Acquired . | . . . . Robots Built . | . . . . Authchips . | . . . . Time . | . . . . Total Robot Build Rating . | . . . . Part Schematics Acquired . | . . . . Parts Built . | . . . . Authchips . | . . . . Time . | . . . . Total Part Build Rating . | . . . . Parts Repaired . | . . . . Time . | . . . . Parts Recycled . | . . . . Recycled Matter . | . . . . Retrieved Matter . | . . . . Retrieved Components . | . . . . Parts Scanalyzed . | . . . . Part Schematics Acquired . | . . . . Parts Damaged . | . . . . Bothacking | -11 -10 -9 -8 ------------ Run | Yrd Mat Mat Mat Used RIF Installer . | . . . . Robots Hacked . | . . . . Non-combat . | . . . . Combat . | . . . . Robot Hacks Applied . | . . . . Relay Couplers Released 1 | . . . 1 Machine Destruction 1 | . . . 1 Fabnet Peak Effective % . | . . . . Robots Rewired . | . . . . Allies Hacked . | . . . . Hacks Repelled . | . . . . Allies | -11 -10 -9 -8 -------- Run | Yrd Mat Mat Mat Total Allies . | . . . . Largest Group . | . . . . Highest-Rated Group . | . . . . Highest-Rated Ally . | . . . . Total Orders . | . . . . Ally Attacks . | . . . . Total Damage . | . . . . Kills . | . . . . Allies Corrupted . | . . . . Allies Melted . | . . . . Intel | -11 -10 -9 -8 ------- Run | Yrd Mat Mat Mat Robot Analysis Total . | . . . . Derelict Logs Recovered . | . . . . Drone Launches . | . . . . Drone Recoveries . | . . . . Exploration | -11 -10 -9 -8 ------------- Run | Yrd Mat Mat Mat Turns Passed 2533 | 75 592 598 1268 Spaces Moved 1406 | 50 360 342 654 Core 4 | 2 . . 2 Treads 216 | . . . 216 Legs 860 | 48 360 342 110 Wheels 326 | . . . 326 Hover . | . . . . Flight . | . . . . Fastest Speed 50 | 50 120 120 100 Average Speed 126 | 121 120 120 134 Slowest Speed 350 | 190 120 120 350 Overloaded Moves . | . . . . Propulsion Burnouts . | . . . . Robots Hopped . | . . . . Cave-ins Triggered . | . . . . Exploration Rate (%) 30 | 3 41 38 38 Regions Visited 3 Branch Regions . Pre-discovered Areas . | . . . . Known Exits Taken . | . . . . Unknown Exits Taken 3 | 1 1 1 . Scrap Searched . | . . . . Spaces Dug . | . . . . Terrain Destroyed 54 | . . . 54 Melee . | . . . . Projectile 2 | . . . 2 AOE 52 | . . . 52 Terrain Rammed . | . . . . Walls Destroyed . | . . . . Machines Disabled . | . . . . Actions | -11 -10 -9 -8 --------- Run | Yrd Mat Mat Mat Total 1836 | 62 460 448 866 Wait 145 | . 49 37 59 Move 1403 | 49 359 341 654 Hop . | . . . . Pick Up 23 | 7 7 4 5 Fast Attach 40 | 5 4 3 28 Attach 10 | 1 . 2 7 Detach 9 | . 1 . 8 Swap 12 | . 1 8 3 Drop 37 | . 8 13 16 Fire 157 | . 31 40 86 Melee . | . . . . Ram . | . . . . Kick . | . . . . Crush . | . . . . Escape Stasis . | . . . . Rewire . | . . . . Trap . | . . . . Miscellaneous . | . . . . Route ------- -11/Scrapyard -10/Materials -9/Materials (discovered 2 exits: *Mat / [*Min]) -8/Materials History --------- Turn | Location | Event 36 | -11/Scrapyard | Discovered new exit (range 14) 76 | -11/Scrapyard | Entered Materials 329 | -10/Materials | Build established: Mutant 645 | -10/Materials | Discovered new exit (range 14) 668 | -10/Materials | Entered another Materials area 668 | -9/Materials | Evolved 2 slots: Propulsion x1, Weapon x1 931 | -9/Materials | Discovered new exit (range 19) 1168 | -9/Materials | Discovered new exit (range 15) 1266 | -9/Materials | Entered another Materials area 1266 | -8/Materials | Evolved 2 slots: Utility x2 1288 | -8/Materials | Build established: Scavenger-Tank 1487 | -8/Materials | Lost 4 parts (2n1u1w) 1843 | -8/Materials | Identified exit to Garrison 1849 | -8/Materials | Garrison activated, responded to threat 1993 | -8/Materials | Garrison activated, responded to threat 2042 | -8/Materials | Core integrity fell below 50% 2083 | -8/Materials | Lost 7 parts (2p2n1u2w) 2400 | -8/Materials | Core integrity fell below 20% 2412 | -8/Materials | Garrison activated, responded to threat 2448 | -8/Materials | Build established: Scavenger-Gunner 2534 | -8/Materials | Destroyed by G-47 Trooper with Particle Gun Last Messages --------------- 02497_ K-01 Serf collects debris. 02499_ M-28 Smith repairs G-47 Trooper. 02500_ K-01 Serf collects debris. 02501_ M-28 Smith fits Backup Plating III on G-47 Trooper. 02511_ W-25 Informer sends out distress signal. 02515_ S-10 Pest destroyed. 02515_ Recycling Unit disabled. 02515_ Imp. Heat Sink tumbles out of recycling unit. 02520_ S-10 Pest destroyed. 02520_ Electrolysis Chamber disabled. 02521_ Lgt. Treads destroyed. 02525_ K-01 Serf collects debris. 02527_ Imp. Targeting Computer destroyed. 02528_ Electrolysis Chamber disabled. 02528_ K-01 Serf collects debris. 02531_ S-10 Pest destroyed. 02532_ K-01 Serf collects debris. 02533_ Ion Cannon destroyed. 02534_ K-01 Serf collects debris. 02534_ R-06 Scavenger collects Flight Unit. Map ----- +----------------------------------------------------+ | ## /##+####### #??????????????????????????? | | + % #??????????????????????????? | | ## T T +??????????????????????????? | | %## ##+####### #??????????????????????????? | | #+### ##????????????????????????????????????????? | | #%#?# #?????????????????????????????????????????? | | # #?# #?????????????????????????????????????????? | | # #?# #?????????????????????????????????????????? | | # #?# #?????????????????????????????????????????? | | # ### #?????????????????????????????????????????? | | #?????????????????????????????????????????? | | " % #?????????????????????????????????????????? | | "%"" #?????????????????????????????????????????? | | "! " #?????????????????????????????????????????? | | %" %#?????????????????????????????????????????? | | #############?????????????????????????????? | | #########?????????????????????? | | #?????????????????????? | | #?????????????????????? | | "" """ #?????????????????????? | | ###%########## "" """ #?????????????????????? | | # %! #?????# """ "" #?????????????????????? | | # #???###! gggg #?????????????????????? | | # #???#" rrr% #?????????????????????? | | # ! #???#"Y " % #?????????????????????? | | #] #???#"" """=@ #?????????????????????? | | # #???### "" """ k #????????##???????????? | | ########?##### "Y ###+### ??????????? | | ??????? "" k ??????????? | | ??????? w ^ ??????????? | | ?????? ^ ??????????? | | ???????#######+####### ####### ??????#####? | | ?????????????????????## t##??????#########?# ]]#? | | ?????????????????????# ########"""T"""### ]]#? | | ?????????????????????# !!#? | | ?????????????????????# !!#? | | ?????????????????????# " ]]#? | | ?????????????????????# ### T ]]#? | | ?????????????????????#######?# " #####? | | ???????????????????????????### #????? | | ???????????????????????????#"" #????? | | ???????????????????????????#"T #????? | | ???????????????????????????#"" #????? | | ???????????????????????????### #????? | | ?????????????????????????????# #????? | | ?????????????????????????????# """ #????? | | ????????????????????########## """"" #????? | | ???????????????????? # """"" #????? | | ????????????????????? """ # """"" #???? | | ?????????????????????""""" # """ #???? | +----------------------------------------------------+ Best States ------------- Heat Dissipation 45 Energy Generation 14 Energy Capacity 475 Matter Stores 300 Matter Capacity 300 Sight Range 16 Terrain Scan Density 10 Armor Coverage 150 Core Shielding 20 Propulsion Shielding 33 Utility Shielding 33 Evasion (%) 55 Targeting Accuracy 6 Core Analysis 6 Armor Integrity Analysis 30 Recoil Reduction 3 Item Schematics ----------------- None Robot Schematics ------------------ None Fabricated ------------ Nothing Alien Tech Used ----------------- None Achievements -------------- None Challenges ------------ None Game ------ Seed VariablePlasmaDerivative Manual? 0 Play Time 00:23:25 Cumulative 24.9 hours Start 2024.03.30 @ 00:35:55 End 2024.03.30 @ 00:57:52 Sessions 1 Manual Loads 0 Difficulty Rogue Special Mode None Game No. 56 Rogue 56 Adventurer 0 Explorer 0 Win Type - Total 0 Types 0/0/0/0/0/0/0/0/0 Lore% 18 Gallery% 24 Achievement% 22 Wizard Run 0 Options --------- Layout 0 ASCII 0 Keyboard 1 Movement Numpad Keybinds 0 Fullscreen 1 Font 18/X11 Map View 76x50 Zoom Use 0% Tactical HUD 1 Map Filters NONE Filters NONE Steam 1 RUN: 2e9e4339-7ba3-45e3-8183-506fa0001d28